bitfinex-derivatives/quotes_BTCF0:USTF0_20250402
["timestamp","ask_amount","ask_price","bid_price","bid_amount"]
[1743608826211,0.00108001,87188.0,87187.0,0.1146937]
[1743608826409,0.00017197,87195.0,87194.0,0.1146844]
[1743608826714,0.00017197,87195.0,87194.0,0.1346844]
[1743608827013,0.12010091,87195.0,87194.0,0.1346844]
[1743608827208,0.12010091,87195.0,87194.0,0.1146844]
[1743608827400,0.12010091,87195.0,87194.0,0.4854844]
[1743608827913,0.3608,87210.0,87206.0,0.1146678]
[1743608828212,0.3608,87221.0,87206.0,0.3708]
[1743608828415,0.3608,87221.0,87207.0,0.2617]
[1743608828714,0.12282844,87220.0,87207.0,0.2917]
[1743608828916,0.48362844,87220.0,87202.0,0.3608]
[1743608829114,0.02416495,87257.0,87220.0,0.1146503]
[1743608829115,0.12282844,87221.0,87220.0,0.1146503]
[1743608829416,0.12282844,87221.0,87220.0,0.1446503]
[1743608829621,0.00017197,87222.0,87221.0,0.1146489]
[1743608829823,0.00017197,87222.0,87221.0,0.2576489]
[1743608830016,0.12426476,87222.0,87221.0,0.7433489]
[1743608830313,0.1146529,87218.0,87217.0,0.3608]
[1743608830516,0.18158876,87222.0,87218.0,0.114652]
[1743608830708,0.00017197,87222.0,87218.0,0.257652]
[1743608830905,0.24365757,87219.0,87218.0,0.143]
[1743608831125,0.24365757,87219.0,87218.0,0.2576529]
[1743608831319,0.00017197,87222.0,87218.0,0.2003259]
[1743608831510,0.00017197,87222.0,87221.0,0.1146489]
[1743608831712,0.11601958,87222.0,87221.0,0.01]
[1743608831920,0.1146516,87219.0,87218.0,1e-07]
[1743608832211,0.1146963,87185.0,87184.0,0.1216]
[1743608832413,0.3608,87201.0,87181.0,0.00051617]
[1743608832613,0.12134223,87185.0,87184.0,0.2936461]
[1743608833017,0.01260352,87200.0,87197.0,0.1146805]
[1743608833317,0.3608,87230.0,87229.0,0.1146384]
[1743608833523,0.3608,87230.0,87198.0,0.6076]
[1743608833818,0.1146779,87199.0,87198.0,0.3808]
[1743608834023,0.1146976,87184.0,87183.0,0.00172066]
[1743608834211,0.3608,87192.0,87184.0,0.1146976]
[1743608834427,0.3608,87192.0,87183.0,0.00172066]
[1743608834428,0.36097197,87192.0,87191.0,0.1146884]
[1743608834821,0.36097197,87192.0,87189.0,0.0573449]
[1743608834822,0.4981814,87192.0,87183.0,0.00172066]
[1743608835018,0.1147002,87182.0,87181.0,3e-08]
[1743608835215,0.12233263,87182.0,87181.0,3e-08]
[1743608835520,0.13414913,87182.0,87181.0,0.11470153]
[1743608835822,0.13414913,87182.0,87181.0,3e-08]
[1743608835823,0.24708879,87182.0,87181.0,3e-08]
[1743608836024,0.13238859,87182.0,87181.0,0.11470153]
[1743608836513,0.4873167,87182.0,87181.0,3e-08]
[1743608836718,0.2412169,87182.0,87181.0,3e-08]
[1743608836924,0.12711671,87182.0,87181.0,0.11470153]
[1743608837126,0.12711671,87182.0,87181.0,0.11554153]
[1743608837917,0.00060001,87182.0,87181.0,0.25324153]
[1743608838119,0.1268,87193.0,87181.0,0.13854003]
[1743608838323,0.3608,87188.0,87182.0,1.5]
[1743608838524,0.3608,87188.0,87181.0,0.01084003]
[1743608838525,0.1147002,87182.0,87181.0,3e-08]
[1743608838828,0.1147423,87150.0,87149.0,0.00051636]
[1743608839123,0.1147555,87140.0,87139.0,0.00844882]
[1743608839323,0.36140001,87140.0,87133.0,0.00051645]
[1743608839522,0.4755634,87134.0,87133.0,0.00051645]
[1743608839716,0.47616341,87134.0,87133.0,0.00051645]
[1743608839930,0.64395548,87134.0,87117.0,0.00051655]
[1743608840228,0.7216,87118.0,87117.0,0.00127655]
[1743608840526,0.00076,87118.0,87117.0,0.11606235]
[1743608840717,0.1317816,87118.0,87117.0,0.23756235]
[1743608840925,0.1317816,87118.0,87117.0,0.00127655]
[1743608841120,0.1317816,87118.0,87117.0,0.11606235]
[1743608841420,0.3608,87128.0,87127.0,0.1147726]
[1743608841622,0.3608,87128.0,87127.0,0.001]
[1743608841623,0.36176001,87128.0,87127.0,0.001]
[1743608841822,0.1221535,87127.0,87121.0,0.0573902]
[1743608842026,0.1147792,87122.0,87121.0,0.00096]
[1743608842226,0.11537921,87122.0,87121.0,0.00096]
[1743608842425,0.11537921,87122.0,87117.0,0.00051655]
[1743608842426,0.1147845,87118.0,87117.0,0.00051655]
[1743608842624,0.00068,87118.0,87117.0,1.50051655]
[1743608842828,0.23916553,87118.0,87117.0,0.00147655]
[1743608843025,0.23976554,87118.0,87117.0,0.00051655]
[1743608843425,0.38148104,87118.0,87117.0,0.00051655]
[1743608843627,0.38148104,87118.0,87101.0,0.00051664]
[1743608843628,0.1148056,87102.0,87101.0,0.00051664]
[1743608843829,0.1148056,87102.0,87101.0,0.00151664]
[1743608843830,0.36140001,87102.0,87101.0,0.00151664]
[1743608844042,0.59928428,87102.0,87101.0,0.00051664]
[1743608844425,0.48447868,87102.0,87101.0,0.00051664]
[1743608845126,0.1148267,87086.0,87085.0,0.00051674]
[1743608845328,0.72228,87086.0,87070.0,0.1286]
[1743608845524,0.3608,87071.0,87070.0,0.2444078]
[1743608845721,0.36176001,87071.0,87070.0,0.2453678]
[1743608845933,0.36079843,87071.0,87070.0,0.3750078]
[1743608846132,0.00096001,87071.0,87070.0,0.3750078]
[1743608846435,0.00017218,87079.0,87078.0,0.1148372]
[1743608846621,0.00017218,87079.0,87078.0,0.4865972]
[1743608846929,0.1276,87100.0,87089.0,0.057411]
[1743608847136,0.1148214,87090.0,87089.0,0.01]
[1743608847322,0.1148346,87080.0,87079.0,0.1248]
[1743608847529,0.11579461,87080.0,87079.0,0.12576]
[1743608847734,0.24097007,87080.0,87079.0,0.12576]
[1743608847927,0.24097007,87080.0,87079.0,0.00096]
[1743608848124,0.1148438,87073.0,87072.0,0.1248]
[1743608848329,0.11580381,87073.0,87072.0,0.001]
[1743608848629,0.11580381,87073.0,87071.0,0.00017218]
[1743608848630,0.1148451,87072.0,87071.0,0.00017218]
[1743608848930,0.00060001,87072.0,87071.0,0.12597868]
[1743608849239,0.3608,87083.0,87071.0,0.13373218]
[1743608849426,0.1148356,87080.0,87079.0,0.1148354]
[1743608849627,0.1148356,87080.0,87079.0,0.001]
[1743608849628,0.11587461,87080.0,87079.0,0.001]
[1743608849827,0.11587461,87080.0,87071.0,0.00017218]
[1743608849828,0.1148438,87073.0,87072.0,0.1148447]
[1743608850029,0.12097822,87080.0,87079.0,0.1148359]
[1743608850230,0.11579461,87080.0,87079.0,0.1148359]
[1743608850434,0.00096001,87080.0,87079.0,0.1257959]
[1743608850634,0.12097822,87087.0,87086.0,0.1148267]
[1743608850836,8e-08,87088.0,87087.0,0.1148254]
[1743608851134,0.3608,87105.0,87087.0,0.6141243]
[1743608851330,0.3608,87098.0,87088.0,1.5]
[1743608851641,0.4756227,87089.0,87088.0,1.52096]
[1743608851826,0.0574162,87082.0,87051.0,0.3608]
[1743608852026,0.057418,87079.0,87051.0,0.3608]
[1743608852231,0.1148478,87070.0,87067.0,0.00017218]
[1743608852539,0.2431089,87070.0,87067.0,0.00017218]
[1743608852839,0.6039089,87070.0,87067.0,0.00017218]
[1743608853136,0.1148689,87054.0,87053.0,3e-08]
[1743608853432,0.1148689,87054.0,87037.0,1.3e-07]
[1743608853433,0.11489,87038.0,87037.0,1.3e-07]
[1743608853631,0.11489,87038.0,87014.0,0.5667786]
[1743608853632,0.0574493,87032.0,87025.0,0.3608]
[1743608853833,0.1149111,87022.0,87014.0,0.5667786]
[1743608854024,0.4757111,87022.0,87014.0,0.2059786]
[1743608854332,0.1149204,87015.0,87014.0,0.2059786]
[1743608854531,0.1149256,87011.0,87010.0,0.26467606]
[1743608854726,0.00068,87011.0,87010.0,0.26527606]
[1743608854928,0.12382738,87011.0,87010.0,0.74100306]
[1743608855227,0.12167016,87011.0,87010.0,0.74100306]
[1743608855433,0.12167016,87011.0,87010.0,0.75100306]
[1743608855829,0.0574299,87061.0,87010.0,0.75100306]
[1743608855830,0.3608,87054.0,87029.0,0.1149019]
[1743608856027,0.1256,87053.0,87040.0,0.005]
[1743608856227,0.25148,87053.0,87052.0,1.5]
[1743608856431,0.0004,87065.0,87054.0,0.005]
[1743608856728,0.0004,87065.0,87054.0,0.00568]
[1743608856729,0.1310443,87063.0,87054.0,0.00568]
[1743608856931,0.1310443,87063.0,87062.0,0.4756583]
[1743608857132,0.00060001,87063.0,87062.0,0.37156]
[1743608857326,0.24650131,87063.0,87062.0,0.36656]
[1743608857629,0.2465813,87063.0,87062.0,0.00076]
[1743608857830,0.2465813,87063.0,87053.0,0.00051693]
[1743608857831,0.1148689,87054.0,87053.0,0.00051693]
[1743608858137,0.1155889,87054.0,87053.0,0.00119693]
[1743608858326,0.12306362,87054.0,87053.0,0.00119693]
[1743608858932,0.00072,87054.0,87053.0,0.13606713]
[1743608859134,0.0574247,87069.0,87064.0,0.005]
[1743608859333,0.0574233,87071.0,87064.0,0.4913357]
[1743608859534,0.0004,87081.0,87066.0,0.114853]
[1743608859741,0.1281,87112.0,87095.0,0.005]
[1743608859925,0.3612,87097.0,87075.0,0.005]
[1743608860128,0.24676494,87067.0,87066.0,0.3608]
[1743608860330,0.1148623,87059.0,87058.0,0.3608]
[1743608860534,0.1155423,87059.0,87058.0,0.36148]
[1743608860732,0.24129124,87059.0,87058.0,0.36148]
[1743608860929,0.24077441,87059.0,87058.0,0.36148]
[1743608861131,0.24025767,87059.0,87058.0,0.36148]
[1743608861436,0.12642894,87059.0,87058.0,0.4763436]
[1743608861638,0.12574894,87059.0,87058.0,0.36148]
[1743608861844,0.12574894,87059.0,87058.0,0.4763436]
[1743608861845,0.00068,87059.0,87058.0,0.4763436]
[1743608862136,0.00017229,87067.0,87066.0,0.119853]
[1743608862336,0.11502399,87067.0,87066.0,0.36648]
[1743608862541,0.24353486,87067.0,87066.0,0.36148]
[1743608862734,0.60433486,87067.0,87066.0,0.00068]
[1743608862930,0.60433486,87067.0,87058.0,0.3608]
[1743608862931,0.1148623,87059.0,87058.0,0.3608]
[1743608863133,0.00068,87059.0,87058.0,0.36152]
[1743608863338,0.12779087,87059.0,87058.0,0.72232]
[1743608863540,0.12779087,87059.0,87058.0,0.8371836]
[1743608863736,0.1148623,87059.0,87058.0,0.36152]
[1743608863940,0.1155423,87059.0,87058.0,0.36152]
[1743608864131,0.237692,87059.0,87058.0,0.36152]
[1743608864331,0.237692,87059.0,87058.0,0.00072]
[1743608864534,0.1228297,87059.0,87058.0,0.00072]
[1743608864929,0.1220697,87059.0,87058.0,0.24972]
[1743608865129,0.1220697,87059.0,87058.0,0.3695836]
[1743608865340,0.1152555,87065.0,87060.0,0.1148608]
[1743608865538,0.1152555,87065.0,87064.0,0.3608]
[1743608865838,0.24161661,87065.0,87064.0,0.36148]
[1743608866038,0.24161661,87065.0,87064.0,0.00068]
[1743608866237,0.1148689,87054.0,87053.0,0.00051693]
[1743608866541,0.1155489,87054.0,87053.0,3e-08]
[1743608866748,0.1148728,87051.0,87050.0,9e-08]
[1743608867045,0.1157928,87051.0,87050.0,9e-08]
[1743608867234,0.39233623,87051.0,87050.0,9e-08]
[1743608867430,0.1149111,87022.0,87021.0,0.00051712]
[1743608867634,0.1159111,87022.0,87021.0,0.00119712]
[1743608867839,0.12965724,87022.0,87021.0,0.12110952]
[1743608868042,0.12865724,87022.0,87021.0,0.00619712]
[1743608868240,0.24356834,87022.0,87021.0,0.00119712]
[1743608868442,0.1158311,87022.0,87021.0,0.00119712]
[1743608868643,0.24549392,87022.0,87021.0,2e-08]
[1743608868939,0.60629392,87022.0,87021.0,2e-08]
[1743608869141,0.85619392,87022.0,87021.0,2e-08]
[1743608869342,0.1149323,87006.0,87002.0,0.005]
[1743608869543,0.1158523,87006.0,87002.0,0.005]
[1743608869745,0.23653226,87006.0,86997.0,0.4921]
[1743608870045,0.12159996,87006.0,87005.0,0.48125081]
[1743608870453,0.123,87027.0,87015.0,0.005]
[1743608870636,0.123,87027.0,87016.0,0.4836]
[1743608870834,0.1149177,87017.0,87016.0,0.4836]
[1743608871341,0.24482879,87017.0,87016.0,1.9842]
[1743608871546,0.12991109,87017.0,87016.0,2.098519]
[1743608871752,0.123,87035.0,87029.0,0.1149019]
[1743608872044,0.0004,87049.0,87016.0,1.9936]
[1743608872045,0.11507289,87030.0,87026.0,0.005]
[1743608872244,0.1149045,87027.0,87026.0,0.005]
[1743608872448,0.114923,87013.0,87012.0,0.005]
[1743608872839,0.23590469,87013.0,87012.0,0.005]
[1743608873246,0.23590469,87013.0,87006.0,0.2559]
[1743608873247,0.1149309,87007.0,87006.0,0.2559]
[1743608873448,0.1149309,87007.0,87006.0,0.2609]
[1743608873646,0.1149309,87007.0,87000.0,0.1]
[1743608873647,0.1149389,87001.0,87000.0,0.1]
[1743608874155,0.24118298,87001.0,87000.0,0.1]
[1743608874851,0.12624408,87001.0,87000.0,0.1]
[1743608875147,0.12624408,87001.0,87000.0,0.5757402]
[1743608875347,0.05763689,87009.0,87000.0,0.4608]
[1743608875348,0.13082693,87005.0,87000.0,0.4608]
[1743608875560,0.00017239,87009.0,87000.0,0.4608]
[1743608875561,0.13065323,87008.0,87005.0,0.005]
[1743608875856,0.00017239,87009.0,87008.0,0.1149296]
[1743608876040,0.3608,87051.0,87008.0,0.1149296]
[1743608876041,0.30076253,87050.0,87016.0,0.119919]
[1743608876244,0.20469537,87055.0,87032.0,0.1148979]
[1743608876443,0.2596,87054.0,87032.0,2.3520979]
[1743608876648,0.0574402,87046.0,87032.0,2.3520979]
[1743608876950,0.2596,87054.0,87032.0,2.2372]
[1743608876951,0.0574468,87036.0,87032.0,2.2372]
[1743608877146,0.24368333,87033.0,87032.0,0.7272]
[1743608877450,0.24432333,87033.0,87032.0,0.7272]
[1743608877852,0.1149072,87025.0,87024.0,0.36097239]
[1743608878047,0.1157872,87025.0,87024.0,0.36181239]
[1743608878355,0.12668248,87025.0,87024.0,0.47672089]
[1743608878647,0.12580248,87025.0,87024.0,0.36181239]
[1743608878949,0.1157072,87025.0,87024.0,0.36181239]
[1743608879354,0.24130692,87025.0,87024.0,0.36181239]
[1743608879849,0.24130692,87025.0,87024.0,0.00101239]
[1743608880351,0.12639972,87025.0,87024.0,0.00101239]
[1743608880649,0.24130692,87025.0,87024.0,0.00101239]
[1743608882151,0.1149349,87004.0,87003.0,0.22893442]
[1743608882355,0.11597491,87004.0,87003.0,0.0006]
[1743608882653,0.24696024,87004.0,87003.0,0.0006]
[1743608882950,0.24696024,87004.0,86989.0,1e-08]
[1743608882951,0.1149534,86990.0,86989.0,1e-08]
[1743608883158,0.6245934,86990.0,86989.0,1e-08]
[1743608883348,0.60885409,86990.0,86989.0,1e-08]
[1743608883749,0.24805409,86990.0,86989.0,1e-08]
[1743608884358,0.36885409,86990.0,86989.0,1e-08]
[1743608884552,1.36615409,86990.0,86989.0,1e-08]
[1743608884948,1.36615409,86990.0,86957.0,0.39283089]
[1743608884949,0.0574835,86980.0,86969.0,0.26419865]
[1743608885142,0.4757798,86970.0,86963.0,0.32180448]
[1743608885342,0.1149878,86964.0,86963.0,0.25651828]
[1743608885542,0.11638781,86964.0,86963.0,0.25651828]
[1743608885743,0.1149957,86958.0,86957.0,0.39283089]
[1743608885943,0.1149957,86958.0,86957.0,0.0005175]
[1743608885944,0.11663571,86958.0,86957.0,0.0005175]
[1743608886250,0.24327474,86958.0,86957.0,0.0005175]
[1743608886548,0.12827904,86958.0,86957.0,0.0005175]
[1743608886756,0.24327474,86958.0,86957.0,0.0005175]
[1743608887851,0.12827904,86958.0,86957.0,0.0005175]
[1743608888047,0.24327474,86958.0,86957.0,0.0005175]
[1743608888455,0.12827904,86958.0,86957.0,0.0005175]
[1743608888953,0.24327474,86958.0,86957.0,0.0005175]
[1743608889157,0.12827904,86958.0,86957.0,0.0005175]
[1743608889355,0.12663903,86958.0,86957.0,0.0005175]
[1743608889665,0.1149704,86978.0,86968.0,0.1149825]
[1743608889963,0.19394688,86980.0,86968.0,0.7216]
[1743608889964,0.13646358,86980.0,86968.0,0.7216]
[1743608890150,0.13646358,86980.0,86957.0,0.0005175]
[1743608890151,0.1149957,86958.0,86957.0,0.0005175]
[1743608890344,0.11663571,86958.0,86957.0,0.0005175]
[1743608890556,0.24306269,86958.0,86957.0,0.0005175]
[1743608890752,0.24306269,86958.0,86957.0,1e-07]
[1743608890961,0.60386269,86958.0,86957.0,1e-07]
[1743608891352,0.73276269,86958.0,86957.0,1e-07]
[1743608891753,0.73276269,86958.0,86941.0,9e-08]
[1743608891754,0.1150169,86942.0,86941.0,9e-08]
[1743608891954,0.115038,86926.0,86900.0,0.105]
[1743608892260,0.1150592,86910.0,86901.0,0.2448]
[1743608892457,0.11669921,86910.0,86901.0,0.2448]
[1743608892657,0.24877749,86910.0,86901.0,0.2448]
[1743608893057,0.3608,86961.0,86909.0,0.91211778]
[1743608893363,0.13207828,86940.0,86937.0,0.3608]
[1743608893565,0.13207828,86940.0,86939.0,0.1150208]
[1743608893860,0.057486,86976.0,86942.0,0.0575081]
[1743608894054,0.14886121,86980.0,86959.0,0.3608]
[1743608894055,0.131,86966.0,86959.0,0.3608]
[1743608894359,0.131,86966.0,86950.0,0.3608]
[1743608894360,0.0004,86953.0,86950.0,0.3608]
[1743608894664,0.0004,86953.0,86947.0,0.00017259]
[1743608894860,0.12387617,86952.0,86933.0,0.3608]
[1743608895164,0.12387617,86952.0,86951.0,0.114605]
[1743608895764,0.12387617,86952.0,86951.0,0.01]
[1743608896152,0.12387617,86952.0,86947.0,0.1243]
[1743608896361,0.12387617,86952.0,86947.0,0.2446]
[1743608896563,0.12387617,86952.0,86947.0,0.3596096]
[1743608896859,0.0574974,86959.0,86947.0,0.3596096]
[1743608896860,0.0004,86985.0,86963.0,0.1149891]
[1743608897163,0.0004,86985.0,86963.0,0.9965891]
[1743608897354,0.1780801,86985.0,86963.0,0.9965891]
[1743608897556,0.0004,86985.0,86984.0,0.1149613]
[1743608897761,0.0004,86985.0,86984.0,0.3608]
[1743608898063,0.0004,86985.0,86984.0,0.6357613]
[1743608898566,0.2564,87014.0,86984.0,0.5208]
[1743608898871,0.1149367,87003.0,87000.0,0.3608]
[1743608899059,0.00057249,87001.0,87000.0,0.4757402]
[1743608899259,0.00057249,87001.0,87000.0,0.4857402]
[1743608899454,0.11551139,87001.0,87000.0,0.3714]
[1743608899760,0.11551139,87001.0,86973.0,0.0005174]
[1743608899761,0.1149534,86990.0,86989.0,0.00855155]
[1743608899959,0.1149534,86990.0,86976.0,0.00017249]
[1743608899960,0.1149706,86977.0,86976.0,0.00077249]
[1743608900263,0.1149838,86967.0,86966.0,0.3608]
[1743608900455,0.1163438,86967.0,86966.0,0.36148]
[1743608900654,0.1149944,86959.0,86958.0,0.1201]
[1743608900855,0.1165144,86959.0,86958.0,0.1201]
[1743608901055,0.12436651,86959.0,86958.0,0.2401]
[1743608901256,0.1165144,86959.0,86958.0,0.2401]
[1743608901671,0.1149957,86958.0,86957.0,0.0005175]
[1743608901858,0.3743157,86958.0,86957.0,0.0005175]
[1743608902055,0.3743157,86958.0,86949.0,0.3608]
[1743608902056,0.1150063,86950.0,86949.0,0.3608]
[1743608902368,0.1150063,86950.0,86900.0,0.6803598]
[1743608902369,0.0575051,86947.0,86944.0,0.1150137]
[1743608902564,0.0575051,86947.0,86939.0,0.3608]
[1743608902565,0.1306,86949.0,86945.0,0.1322]
[1743608902767,0.25571296,86946.0,86945.0,0.1322]
[1743608902976,0.12663296,86946.0,86945.0,0.1322]
[1743608903263,0.3608,86965.0,86945.0,0.1422]
[1743608903264,0.0574946,86963.0,86945.0,0.1422]
[1743608903466,0.1272,86962.0,86945.0,0.13288]
[1743608903675,0.1272,86962.0,86961.0,0.1149917]
[1743608903676,0.13044321,86962.0,86961.0,0.1149917]
[1743608903863,0.13044321,86962.0,86961.0,0.1155917]
[1743608904167,0.0574962,86961.0,86934.0,0.3608]
[1743608904376,0.0574962,86961.0,86946.0,0.0006]
[1743608904377,0.1150102,86947.0,86946.0,0.0006]
[1743608904562,0.1163302,86947.0,86946.0,0.0006]
[1743608904878,0.59980218,86947.0,86946.0,0.0006]
[1743608905173,0.1150169,86942.0,86941.0,0.00051759]
[1743608905360,0.1150169,86942.0,86901.0,0.0575355]
[1743608905361,0.115038,86926.0,86901.0,0.0575355]
[1743608905566,0.00148,86926.0,86925.0,0.47635709]
[1743608905763,0.3608,86975.0,86959.0,0.1149944]
[1743608905959,0.3608,86984.0,86968.0,0.1149825]
[1743608906160,0.1239,86984.0,86968.0,0.0206]
[1743608906473,0.1324441,86968.0,86967.0,0.1149838]
[1743608906668,0.00017249,86977.0,86967.0,0.1149838]
[1743608906669,0.00017249,86977.0,86976.0,0.1149719]
[1743608906972,0.0004,86953.0,86931.0,0.3608]
[1743608907271,0.1150274,86934.0,86933.0,0.01064]
[1743608907469,0.115038,86926.0,86921.0,0.121]
[1743608907673,0.00040241,86926.0,86925.0,0.00111769]
[1743608907992,0.1266,86949.0,86925.0,0.00111769]
[1743608907993,0.0575053,86947.0,86936.0,0.1150248]
[1743608908166,0.1239,86948.0,86936.0,0.00068]
[1743608908466,0.1154235,86937.0,86936.0,0.00064]
[1743608908673,0.23595435,86937.0,86936.0,0.00064]
[1743608909368,0.115038,86926.0,86925.0,0.00051769]
[1743608909565,0.476598,86926.0,86925.0,0.00111769]
[1743608909767,0.1150592,86910.0,86903.0,0.3608]
[1743608909966,0.1150592,86910.0,86909.0,0.00111778]
[1743608910272,0.1150592,86910.0,86900.0,0.105]
[1743608910273,0.1150711,86901.0,86900.0,0.105]
[1743608910468,0.00112001,86901.0,86900.0,0.105]
[1743608910668,0.5514303,86909.0,86900.0,0.10568]
[1743608910870,0.00112001,86909.0,86907.0,0.3608]
[1743608911071,0.3608,86919.0,86908.0,0.126]
[1743608911373,0.3608,86919.0,86908.0,0.25148]
[1743608911374,0.1150605,86909.0,86908.0,0.25148]
[1743608911570,0.00112001,86909.0,86908.0,0.25108]
[1743608911872,0.1150605,86909.0,86908.0,0.61148]
[1743608912073,0.23864431,86909.0,86908.0,0.12588]
[1743608912267,0.24588278,86909.0,86908.0,0.12588]
[1743608912464,0.24588278,86909.0,86908.0,0.1252]
[1743608912672,0.61902228,86909.0,86908.0,0.1252]
[1743608912977,0.24588278,86909.0,86908.0,0.1258]
[1743608913369,0.13082228,86909.0,86908.0,0.1258]
[1743608913569,0.00835848,86909.0,86908.0,0.1258]
[1743608913769,0.00723847,86909.0,86908.0,0.2408619]
[1743608914076,0.00723847,86909.0,86908.0,1.9008619]
[1743608914276,0.00023847,86909.0,86908.0,1.9008619]
[1743608914878,0.19377171,86931.0,86908.0,1.7858]
[1743608915075,0.0575192,86926.0,86914.0,0.3608]
[1743608915373,0.13625601,86931.0,86930.0,0.1150327]
[1743608915669,0.13737602,86931.0,86930.0,0.3808]
[1743608915874,0.13737602,86931.0,86930.0,0.36144]
[1743608915875,0.38318444,86931.0,86930.0,0.36144]
[1743608916176,0.39778539,86931.0,86930.0,1e-07]
[1743608916378,0.39778539,86931.0,86925.0,0.00051769]
[1743608916379,0.115038,86926.0,86925.0,0.00051769]
[1743608916568,0.01608095,86926.0,86925.0,0.11555619]
[1743608916767,0.14949174,86931.0,86925.0,0.11555619]
[1743608916768,0.14949174,86931.0,86925.0,0.16051769]
[1743608917068,0.23976293,86926.0,86925.0,0.00111769]
[1743608917268,0.00104001,86926.0,86925.0,0.00155769]
[1743608917473,0.00104001,86926.0,86925.0,0.11555709]
[1743608917671,0.115038,86926.0,86925.0,0.01111769]
[1743608917871,0.116118,86926.0,86925.0,0.00111769]
[1743608918080,0.24866526,86926.0,86925.0,9e-08]
[1743608918376,0.24866526,86926.0,86915.0,0.1208]
[1743608918377,0.13362726,86926.0,86915.0,0.1208]
[1743608918579,0.1150513,86916.0,86915.0,0.132]
[1743608918774,0.1150513,86916.0,86915.0,0.122]
[1743608918775,0.1163313,86916.0,86915.0,0.122]
[1743608918979,0.14078073,86916.0,86915.0,0.2370526]
[1743608919281,0.01249381,86916.0,86915.0,0.2370526]
[1743608919475,0.0004,86921.0,86920.0,0.115046]
[1743608919675,0.11652461,86921.0,86920.0,0.00108]
[1743608919877,0.11652461,86921.0,86920.0,0.476926]
[1743608919878,0.00148001,86921.0,86920.0,0.476926]
[1743608920088,0.13625601,86932.0,86931.0,0.1150314]
[1743608920384,0.3608,86965.0,86936.0,0.1150248]
[1743608920568,0.06409422,86952.0,86951.0,0.115005]
[1743608920882,0.27249027,86974.0,86962.0,0.1149904]
[1743608921185,0.27249027,86974.0,86967.0,0.1149838]
[1743608921373,0.33958605,86968.0,86967.0,0.5164238]
[1743608921578,0.33958605,86968.0,86967.0,0.6664238]
[1743608921768,0.27249027,86974.0,86973.0,0.1149759]
[1743608921971,0.27341027,86974.0,86973.0,0.396491]
[1743608922172,0.27249027,86974.0,86973.0,0.546491]
[1743608922373,9e-08,86982.0,86981.0,0.1149653]
[1743608922572,9e-08,86982.0,86981.0,0.7066053]
[1743608922784,0.0004,87001.0,86981.0,0.59164]
[1743608922981,0.0004,87001.0,87000.0,0.8365402]
[1743608922982,1e-07,87001.0,87000.0,0.8365402]
[1743608923184,0.114939,87001.0,87000.0,0.93292]
[1743608923389,0.114939,87001.0,87000.0,0.78212]
[1743608923593,0.114939,87001.0,87000.0,0.36132]
[1743608923781,0.0008401,87001.0,87000.0,0.36132]
[1743608924084,0.24410917,87001.0,87000.0,0.36132]
[1743608924285,0.24410917,87001.0,86983.0,0.3608]
[1743608924286,0.27917027,87001.0,86958.0,0.3608]
[1743608924493,0.1149957,86958.0,86948.0,0.3608]
[1743608924676,0.11559571,86958.0,86948.0,0.3608]
[1743608924879,0.11559571,86958.0,86947.0,0.187005]
[1743608924880,0.24223718,86958.0,86947.0,0.187005]
[1743608925085,0.12724148,86958.0,86957.0,0.1155145]
[1743608925279,8.261e-05,86958.0,86957.0,0.1161945]
[1743608925482,0.0574631,87011.0,86957.0,0.1161945]
[1743608925483,0.3608,86985.0,86957.0,0.3233575]
[1743608925687,0.00017249,86966.0,86963.0,0.3608]
[1743608925888,0.1149878,86964.0,86963.0,0.03096]
[1743608926187,0.1149878,86964.0,86957.0,0.0005175]
[1743608926188,0.00064,86964.0,86957.0,0.0005175]
[1743608926389,0.00064,86964.0,86963.0,0.1149891]
[1743608926576,0.00064,86964.0,86963.0,0.01096]
[1743608926777,0.00064,86964.0,86963.0,0.1259491]
[1743608926980,0.24722356,86964.0,86963.0,0.00096]
[1743608927188,0.1149944,86959.0,86958.0,0.1295]
[1743608927378,0.00096001,86959.0,86958.0,0.13006]
[1743608927580,0.13319577,86959.0,86958.0,0.2450552]
[1743608927779,0.13319577,86959.0,86958.0,0.2550552]
[1743608927986,0.00096001,86959.0,86958.0,0.6158552]
[1743608928177,0.3608,86976.0,86958.0,0.50086]
[1743608928178,0.3608,86966.0,86958.0,0.50086]
[1743608928372,0.47527728,86959.0,86958.0,0.00096]
[1743608928586,0.4929027,86959.0,86949.0,0.00017249]
[1743608928883,0.1150301,86932.0,86931.0,0.33495682]
[1743608929087,0.1157101,86932.0,86931.0,0.33563682]
[1743608929276,0.12365169,86932.0,86931.0,0.45066822]
[1743608929477,0.12365169,86932.0,86931.0,0.46066822]
[1743608929689,0.3608,86948.0,86931.0,0.34563682]
[1743608929983,0.3608,86938.0,86931.0,0.37563682]
[1743608930186,0.1150301,86932.0,86931.0,0.37563682]
[1743608930388,0.11599011,86932.0,86931.0,0.13593682]
[1743608930581,0.12835437,86932.0,86923.0,0.39248588]
[1743608930885,0.5748245,86982.0,86923.0,0.39248588]
[1743608930886,0.3608,86965.0,86931.0,0.3608]
[1743608931090,0.00060001,86965.0,86963.0,0.3608]
[1743608931294,0.248,87000.0,86964.0,0.1267]
[1743608931295,0.3608,86981.0,86964.0,0.1267]
[1743608931583,0.3608,86981.0,86946.0,0.3608]
[1743608931584,0.7216,86965.0,86937.0,0.3608]
[1743608931787,0.3608,86947.0,86937.0,0.3808]
[1743608931978,0.3608,86947.0,86937.0,0.00092]
[1743608931979,0.4758221,86938.0,86937.0,0.00092]
[1743608932176,0.0575132,86935.0,86933.0,0.00017249]
[1743608932387,0.2399274,86934.0,86933.0,0.00017249]
[1743608932585,0.2399274,86934.0,86921.0,0.0575218]
[1743608932586,0.38302176,86934.0,86912.0,0.0575282]
[1743608932788,0.3608,86927.0,86925.0,0.1150387]
[1743608933091,0.3608,86926.0,86913.0,0.05925376]
[1743608933290,0.36028307,86923.0,86914.0,0.1213]
[1743608933479,0.36028307,86923.0,86922.0,0.1150433]
[1743608933677,0.36028307,86923.0,86922.0,0.1250433]
[1743608933888,0.0725786,86931.0,86930.0,0.1150327]
[1743608934184,0.1244,86951.0,86950.0,0.1150063]
[1743608934392,0.1244,86951.0,86949.0,0.1150071]
[1743608934582,0.1244,86951.0,86930.0,0.66156253]
[1743608934583,0.1244,86951.0,86946.0,0.0575053]
[1743608934784,0.1244,86951.0,86947.0,0.1199]
[1743608934978,0.0575031,86950.0,86947.0,0.1199]